[Event "Titled Tuesday Blitz February 22 Early 2022"]
[White "De Verdier, Michael"]
[Black "Qashashvili, Alexandre"]
[WhiteFideId "1710516"]
[BlackFideId "13600842"]
[WhiteElo "2301"]
[BlackElo "2316"]
[Result "1-0"]
[Round "10"]
[TimeControl "180+1"]
[Date "2022.02.22"]
[WhiteClock "0:00:45"]
[BlackClock "0:00:21"]

1. Nf3 {[%clk 0:03:00]}  c6 {[%clk 0:03:00]} 2. c4 {[%clk 0:02:59]}  d5 {[%clk 0:03:01]} 3. e3 {[%clk 0:02:59]}  Nf6 {[%clk 0:03:01]} 4. Nc3 {[%clk 0:03:00]}  Bf5 {[%clk 0:02:54]} 5. cxd5 {[%clk 0:02:59]}  Nxd5 {[%clk 0:02:55]} 6. d4 {[%clk 0:02:58]}  e6 {[%clk 0:02:54]} 7. Bd3 {[%clk 0:02:58]}  Bxd3 {[%clk 0:02:54]} 8. Qxd3 {[%clk 0:02:59]}  Be7 {[%clk 0:02:51]} 9. O-O {[%clk 0:03:00]}  O-O {[%clk 0:02:51]} 10. e4 {[%clk 0:03:00]}  Nxc3 {[%clk 0:02:51]} 11. bxc3 {[%clk 0:03:01]}  Nd7 {[%clk 0:02:51]} 12. Rb1 {[%clk 0:02:59]}  b5 {[%clk 0:02:51]} 13. Rd1 {[%clk 0:02:57]}  a6 {[%clk 0:02:50]} 14. Bf4 {[%clk 0:02:55]}  Nf6 {[%clk 0:02:49]} 15. Ne5 {[%clk 0:02:49]}  Rc8 {[%clk 0:02:49]} 16. a4 {[%clk 0:02:42]}  Nd7 {[%clk 0:02:46]} 17. Nf3 {[%clk 0:02:36]}  Nf6 {[%clk 0:02:42]} 18. axb5 {[%clk 0:02:36]}  axb5 {[%clk 0:02:42]} 19. h3 {[%clk 0:02:32]}  h6 {[%clk 0:02:41]} 20. Ne5 {[%clk 0:02:29]}  Nd7 {[%clk 0:02:40]} 21. Qg3 {[%clk 0:02:19]}  Nxe5 {[%clk 0:02:37]} 22. dxe5 {[%clk 0:02:18]}  Qa5 {[%clk 0:02:20]} 23. Bxh6 {[%clk 0:02:16]}  g6 {[%clk 0:02:20]} 24. Bxf8 {[%clk 0:02:16]}  Bxf8 {[%clk 0:02:15]} 25. h4 {[%clk 0:02:13]}  Bg7 {[%clk 0:02:07]} 26. Rd7 {[%clk 0:02:00]}  Rd8 {[%clk 0:01:49]} 27. Rxd8+ {[%clk 0:01:47]}  Qxd8 {[%clk 0:01:49]} 28. h5 {[%clk 0:01:48]}  gxh5 {[%clk 0:01:44]} 29. Qf3 {[%clk 0:01:48]}  Bxe5 {[%clk 0:01:21]} 30. Qxh5 {[%clk 0:01:39]}  Bxc3 {[%clk 0:01:20]} 31. Rd1 {[%clk 0:01:39]}  Bd4 {[%clk 0:01:11]} 32. Kf1 {[%clk 0:01:23]}  c5 {[%clk 0:01:09]} 33. Rd3 {[%clk 0:01:21]}  Qa5 {[%clk 0:00:47]} 34. g3 {[%clk 0:00:58]}  Qd8 {[%clk 0:00:26]} 35. Qxc5 {[%clk 0:00:53]}  e5 {[%clk 0:00:24]} 36. Qxe5 {[%clk 0:00:41]}  Bxe5 {[%clk 0:00:24]} 37. Rxd8+ {[%clk 0:00:40]}  Kg7 {[%clk 0:00:25]} 38. Rd5 {[%clk 0:00:39]}  Bc3 {[%clk 0:00:24]} 39. Rxb5 {[%clk 0:00:39]}  Bd4 {[%clk 0:00:24]} 40. Rb3 {[%clk 0:00:38]}  Kf6 {[%clk 0:00:24]} 41. Ke2 {[%clk 0:00:38]}  Ke5 {[%clk 0:00:24]} 42. Kf3 {[%clk 0:00:37]}  f6 {[%clk 0:00:22]} 43. Rb5+ {[%clk 0:00:36]}  Ke6 {[%clk 0:00:22]} 44. Ke2 {[%clk 0:00:35]}  Ke7 {[%clk 0:00:19]} 45. f4 {[%clk 0:00:36]}  Ke6 {[%clk 0:00:19]} 46. Kf3 {[%clk 0:00:36]}  Ke7 {[%clk 0:00:18]} 47. g4 {[%clk 0:00:36]}  Ke6 {[%clk 0:00:18]} 48. g5 {[%clk 0:00:37]}  fxg5 {[%clk 0:00:19]} 49. Rxg5 {[%clk 0:00:37]}  Bf6 {[%clk 0:00:17]} 50. Rg6 {[%clk 0:00:37]}  Kf7 {[%clk 0:00:18]} 51. Rxf6+ {[%clk 0:00:37]}  Kxf6 {[%clk 0:00:19]} 52. Kg4 {[%clk 0:00:37]}  Kg6 {[%clk 0:00:19]} 53. f5+ {[%clk 0:00:37]}  Kf6 {[%clk 0:00:19]} 54. Kf4 {[%clk 0:00:38]}  Kf7 {[%clk 0:00:19]} 55. e5 {[%clk 0:00:39]}  Ke7 {[%clk 0:00:20]} 56. Ke4 {[%clk 0:00:40]}  Kf7 {[%clk 0:00:21]} 57. Kd5 {[%clk 0:00:41]}  Ke7 {[%clk 0:00:21]} 58. f6+ {[%clk 0:00:42]}  Kd7 {[%clk 0:00:22]} 59. e6+ {[%clk 0:00:42]}  Ke8 {[%clk 0:00:22]} 60. Ke5 {[%clk 0:00:43]}  Kf8 {[%clk 0:00:23]} 61. Kf5 {[%clk 0:00:44]}  Kg8 {[%clk 0:00:23]} 62. Kg6 {[%clk 0:00:44]}  Kf8 {[%clk 0:00:22]} 63. f7 {[%clk 0:00:44]}  Ke7 {[%clk 0:00:21]} 64. Kg7 {[%clk 0:00:45]}  Kxe6 {[%clk 0:00:21]} 65. f8=Q {[%clk 0:00:45]} 1-0


[Site "https://www.chess.com"]

[Event "Titled Tuesday Blitz February 22 Early 2022"]
[White "Erdogdu, Mert"]
[Black "Lazavik, Denis"]
[WhiteFideId "6301495"]
[BlackFideId "13515110"]
[WhiteElo "2485"]
[BlackElo "2436"]
[Result "0-1"]
[Round "10"]
[TimeControl "180+1"]
[Date "2022.02.22"]
[WhiteClock "0:00:05"]
[BlackClock "0:00:55"]

1. e4 {[%clk 0:03:00]}  e5 {[%clk 0:03:00]} 2. f4 {[%clk 0:03:01]}  exf4 {[%clk 0:02:59]} 3. Nf3 {[%clk 0:03:01]}  d6 {[%clk 0:02:58]} 4. Bc4 {[%clk 0:02:59]}  g5 {[%clk 0:02:51]} 5. O-O {[%clk 0:02:58]}  Bg7 {[%clk 0:02:49]} 6. d4 {[%clk 0:02:58]}  Nc6 {[%clk 0:02:48]} 7. Nxg5 {[%clk 0:02:30]}  Qxg5 {[%clk 0:02:45]} 8. Bxf4 {[%clk 0:02:29]}  Qe7 {[%clk 0:02:40]} 9. Nc3 {[%clk 0:02:18]}  Bxd4+ {[%clk 0:02:39]} 10. Kh1 {[%clk 0:02:17]}  Bxc3 {[%clk 0:02:39]} 11. bxc3 {[%clk 0:02:17]}  Be6 {[%clk 0:02:38]} 12. Bd5 {[%clk 0:02:02]}  Qd7 {[%clk 0:02:31]} 13. Bg5 {[%clk 0:01:58]}  Nge7 {[%clk 0:02:15]} 14. Rb1 {[%clk 0:01:56]}  O-O-O {[%clk 0:01:46]} 15. c4 {[%clk 0:01:44]}  b6 {[%clk 0:01:35]} 16. c3 {[%clk 0:01:38]}  Rhg8 {[%clk 0:01:32]} 17. Bh4 {[%clk 0:01:30]}  Ne5 {[%clk 0:01:28]} 18. c5 {[%clk 0:00:56]}  dxc5 {[%clk 0:01:20]} 19. Qh5 {[%clk 0:00:46]}  Nxd5 {[%clk 0:01:14]} 20. Bxd8 {[%clk 0:00:36]}  Qxd8 {[%clk 0:01:00]} 21. Qxe5 {[%clk 0:00:34]}  Ne3 {[%clk 0:01:00]} 22. Rf3 {[%clk 0:00:18]}  Qd2 {[%clk 0:00:59]} 23. Rg1 {[%clk 0:00:16]}  Rxg2 {[%clk 0:00:55]} 24. Rxe3 {[%clk 0:00:04]}  Rxg1+ {[%clk 0:00:54]} 25. Kxg1 {[%clk 0:00:05]}  Qxe3+ {[%clk 0:00:55]} 0-1


[Site "https://www.chess.com"]

[Event "Titled Tuesday Blitz February 22 Early 2022"]
[White "Escudero Donoso, Felipe"]
[Black "Karabalis, Harilos"]
[WhiteFideId "3410595"]
[BlackFideId "4621808"]
[WhiteElo "2184"]
[BlackElo "2168"]
[Result "0-1"]
[Round "10"]
[TimeControl "180+1"]
[Date "2022.02.22"]
[WhiteClock "0:00:02"]
[BlackClock "0:00:17"]

1. Nf3 {[%clk 0:03:00]}  d5 {[%clk 0:02:59]} 2. d4 {[%clk 0:03:00]}  Nf6 {[%clk 0:02:59]} 3. c4 {[%clk 0:03:00]}  e6 {[%clk 0:02:58]} 4. g3 {[%clk 0:03:01]}  Nbd7 {[%clk 0:02:53]} 5. Bg2 {[%clk 0:03:00]}  dxc4 {[%clk 0:02:53]} 6. O-O {[%clk 0:02:54]}  Be7 {[%clk 0:02:50]} 7. Qc2 {[%clk 0:02:53]}  Nb6 {[%clk 0:02:50]} 8. Nbd2 {[%clk 0:02:48]}  O-O {[%clk 0:02:47]} 9. Nxc4 {[%clk 0:02:48]}  c5 {[%clk 0:02:46]} 10. Rd1 {[%clk 0:02:44]}  cxd4 {[%clk 0:02:45]} 11. Nxd4 {[%clk 0:02:43]}  Nxc4 {[%clk 0:02:36]} 12. Nc6 {[%clk 0:02:08]}  Qxd1+ {[%clk 0:02:29]} 13. Qxd1 {[%clk 0:02:08]}  bxc6 {[%clk 0:02:29]} 14. Bxc6 {[%clk 0:02:06]}  Rb8 {[%clk 0:02:26]} 15. b3 {[%clk 0:02:03]}  Na5 {[%clk 0:02:18]} 16. Bf3 {[%clk 0:02:01]}  Rd8 {[%clk 0:02:10]} 17. Qc2 {[%clk 0:01:52]}  Bb7 {[%clk 0:02:10]} 18. Bxb7 {[%clk 0:01:51]}  Rxb7 {[%clk 0:02:08]} 19. Bd2 {[%clk 0:01:42]}  Bb4 {[%clk 0:02:07]} 20. Bxb4 {[%clk 0:01:39]}  Rxb4 {[%clk 0:02:07]} 21. Qc7 {[%clk 0:01:24]}  Nb7 {[%clk 0:01:55]} 22. Qe7 {[%clk 0:01:18]}  Rbd4 {[%clk 0:01:51]} 23. Qxb7 {[%clk 0:01:16]}  R4d7 {[%clk 0:01:50]} 24. Qf3 {[%clk 0:01:14]}  h6 {[%clk 0:01:51]} 25. Kg2 {[%clk 0:01:13]}  Rd2 {[%clk 0:01:50]} 26. Rc1 {[%clk 0:01:13]}  Rxa2 {[%clk 0:01:49]} 27. Rc7 {[%clk 0:01:07]}  a5 {[%clk 0:01:48]} 28. e4 {[%clk 0:01:06]}  Rf8 {[%clk 0:01:33]} 29. Ra7 {[%clk 0:01:00]}  e5 {[%clk 0:01:25]} 30. Qd3 {[%clk 0:00:56]}  Ng4 {[%clk 0:01:19]} 31. Qb5 {[%clk 0:00:21]}  Rxf2+ {[%clk 0:01:09]} 32. Kg1 {[%clk 0:00:21]}  Rc8 {[%clk 0:00:54]} 33. Rc7 {[%clk 0:00:17]}  Rf8 {[%clk 0:00:46]} 34. h3 {[%clk 0:00:14]}  Rf3 {[%clk 0:00:37]} 35. hxg4 {[%clk 0:00:14]}  Rxg3+ {[%clk 0:00:37]} 36. Kh2 {[%clk 0:00:13]}  Rxg4 {[%clk 0:00:38]} 37. Qxa5 {[%clk 0:00:14]}  Rxe4 {[%clk 0:00:38]} 38. b4 {[%clk 0:00:14]}  g5 {[%clk 0:00:35]} 39. b5 {[%clk 0:00:13]}  Kg7 {[%clk 0:00:34]} 40. b6 {[%clk 0:00:13]}  Re2+ {[%clk 0:00:34]} 41. Kg3 {[%clk 0:00:12]}  Rd8 {[%clk 0:00:34]} 42. Qc3 {[%clk 0:00:09]}  Rd4 {[%clk 0:00:18]} 43. b7 {[%clk 0:00:06]}  h5 {[%clk 0:00:18]} 44. b8=Q {[%clk 0:00:02]}  h4+ {[%clk 0:00:18]} 45. Kh3 {[%clk 0:00:03]}  g4+ {[%clk 0:00:15]} 46. Kxh4 {[%clk 0:00:03]}  Rh2+ {[%clk 0:00:16]} 47. Kg5 {[%clk 0:00:02]}  Rh3 {[%clk 0:00:17]} 0-1


[Site "https://www.chess.com"]

[Event "Titled Tuesday Blitz February 22 Early 2022"]
[White "Eynullayev, Atilla"]
[Black "Samant Aditya S"]
[WhiteFideId "13413570"]
[BlackFideId "35080580"]
[WhiteElo "1979"]
[BlackElo "1916"]
[Result "0-1"]
[Round "10"]
[TimeControl "180+1"]
[Date "2022.02.22"]
[WhiteClock "0:00:02"]
[BlackClock "0:00:20"]

1. e4 {[%clk 0:03:00]}  c5 {[%clk 0:02:59]} 2. Nf3 {[%clk 0:03:01]}  d6 {[%clk 0:03:00]} 3. d4 {[%clk 0:03:01]}  cxd4 {[%clk 0:03:01]} 4. Nxd4 {[%clk 0:03:02]}  Nf6 {[%clk 0:03:02]} 5. Nc3 {[%clk 0:03:02]}  Nc6 {[%clk 0:03:02]} 6. Bg5 {[%clk 0:03:02]}  e6 {[%clk 0:03:03]} 7. Bb5 {[%clk 0:03:02]}  Qb6 {[%clk 0:03:02]} 8. Be3 {[%clk 0:02:51]}  Qc7 {[%clk 0:03:01]} 9. O-O {[%clk 0:02:48]}  a6 {[%clk 0:02:50]} 10. Be2 {[%clk 0:02:42]}  Be7 {[%clk 0:02:49]} 11. f4 {[%clk 0:02:39]}  O-O {[%clk 0:02:49]} 12. Kh1 {[%clk 0:02:38]}  Bd7 {[%clk 0:02:47]} 13. a4 {[%clk 0:02:34]}  Nxd4 {[%clk 0:02:29]} 14. Qxd4 {[%clk 0:02:33]}  Bc6 {[%clk 0:02:25]} 15. Bf3 {[%clk 0:02:31]}  Rac8 {[%clk 0:02:03]} 16. a5 {[%clk 0:02:19]}  Nd7 {[%clk 0:01:55]} 17. Rf2 {[%clk 0:01:55]}  Rfd8 {[%clk 0:01:51]} 18. Qd3 {[%clk 0:01:25]}  Nc5 {[%clk 0:01:47]} 19. Qe2 {[%clk 0:01:24]}  Bh4 {[%clk 0:01:24]} 20. Rff1 {[%clk 0:01:15]}  Bf6 {[%clk 0:01:02]} 21. e5 {[%clk 0:00:37]}  Bxf3 {[%clk 0:01:01]} 22. Qxf3 {[%clk 0:00:37]}  dxe5 {[%clk 0:01:01]} 23. Bxc5 {[%clk 0:00:34]}  Qxc5 {[%clk 0:00:53]} 24. Ne4 {[%clk 0:00:30]}  Qe7 {[%clk 0:00:50]} 25. f5 {[%clk 0:00:22]}  Rxc2 {[%clk 0:00:41]} 26. Rad1 {[%clk 0:00:06]}  Rxd1 {[%clk 0:00:22]} 27. Rxd1 {[%clk 0:00:07]}  h6 {[%clk 0:00:23]} 28. Qb3 {[%clk 0:00:03]}  Rc6 {[%clk 0:00:20]} 29. fxe6 {[%clk 0:00:02]}  Rxe6 {[%clk 0:00:21]} 30. Rc1 {[%clk 0:00:02]}  Kh7 {[%clk 0:00:21]} 31. Rc8 {[%clk 0:00:02]}  Rc6 {[%clk 0:00:20]} 0-1


[Site "https://www.chess.com"]

[Event "Titled Tuesday Blitz February 22 Early 2022"]
[White "Fiorito, Fabian"]
[Black "Moksh Amit Doshi"]
[WhiteFideId "100200"]
[BlackFideId "25064967"]
[WhiteElo "2395"]
[BlackElo "2245"]
[Result "0-1"]
[Round "10"]
[TimeControl "180+1"]
[Date "2022.02.22"]
[WhiteClock "0:00:41"]
[BlackClock "0:00:35"]

1. d4 {[%clk 0:03:00]}  Nf6 {[%clk 0:02:53]} 2. Nc3 {[%clk 0:03:00]}  d5 {[%clk 0:02:53]} 3. Bf4 {[%clk 0:03:00]}  e6 {[%clk 0:02:52]} 4. Nb5 {[%clk 0:03:00]}  Na6 {[%clk 0:02:52]} 5. e3 {[%clk 0:03:00]}  Be7 {[%clk 0:02:53]} 6. Nf3 {[%clk 0:03:00]}  O-O {[%clk 0:02:54]} 7. h4 {[%clk 0:03:00]}  c5 {[%clk 0:02:45]} 8. c3 {[%clk 0:03:00]}  Bd7 {[%clk 0:02:44]} 9. a4 {[%clk 0:03:00]}  c4 {[%clk 0:02:32]} 10. Ne5 {[%clk 0:02:58]}  Bxb5 {[%clk 0:02:26]} 11. axb5 {[%clk 0:02:58]}  Nc7 {[%clk 0:02:27]} 12. g4 {[%clk 0:02:14]}  Nxb5 {[%clk 0:02:23]} 13. f3 {[%clk 0:02:11]}  Bd6 {[%clk 0:02:07]} 14. h5 {[%clk 0:02:08]}  Nd7 {[%clk 0:02:07]} 15. g5 {[%clk 0:02:02]}  Qc7 {[%clk 0:01:55]} 16. g6 {[%clk 0:01:49]}  Nxe5 {[%clk 0:01:52]} 17. gxh7+ {[%clk 0:01:45]}  Kxh7 {[%clk 0:01:50]} 18. Qc2+ {[%clk 0:01:44]}  Nd3+ {[%clk 0:01:48]} 19. Bxd3+ {[%clk 0:01:44]}  cxd3 {[%clk 0:01:48]} 20. Qxd3+ {[%clk 0:01:45]}  f5 {[%clk 0:01:48]} 21. Qxb5 {[%clk 0:01:40]}  Bxf4 {[%clk 0:01:48]} 22. exf4 {[%clk 0:01:41]}  Qxf4 {[%clk 0:01:49]} 23. Kf2 {[%clk 0:01:37]}  Qd2+ {[%clk 0:01:41]} 24. Qe2 {[%clk 0:01:38]}  Qxe2+ {[%clk 0:01:42]} 25. Kxe2 {[%clk 0:01:39]}  a6 {[%clk 0:01:39]} 26. f4 {[%clk 0:01:39]}  Rf6 {[%clk 0:01:39]} 27. Kf3 {[%clk 0:01:39]}  Rh6 {[%clk 0:01:39]} 28. Rag1 {[%clk 0:01:32]}  Kg8 {[%clk 0:01:38]} 29. Rg5 {[%clk 0:01:33]}  Kf7 {[%clk 0:01:38]} 30. Rhg1 {[%clk 0:01:34]}  Rh7 {[%clk 0:01:33]} 31. Ra1 {[%clk 0:01:32]}  Rah8 {[%clk 0:01:32]} 32. Rh1 {[%clk 0:01:23]}  Rc8 {[%clk 0:01:24]} 33. Ra1 {[%clk 0:01:21]}  Rc4 {[%clk 0:01:23]} 34. Ke3 {[%clk 0:01:19]}  Rc6 {[%clk 0:01:22]} 35. Kd3 {[%clk 0:01:18]}  Rc7 {[%clk 0:01:16]} 36. Ra3 {[%clk 0:01:17]}  Rh6 {[%clk 0:01:12]} 37. Rb3 {[%clk 0:01:11]}  Kf6 {[%clk 0:01:12]} 38. Rb6 {[%clk 0:01:10]}  Re7 {[%clk 0:01:12]} 39. b3 {[%clk 0:01:10]}  g6 {[%clk 0:01:12]} 40. hxg6 {[%clk 0:01:10]}  Rxg6 {[%clk 0:01:13]} 41. Rxg6+ {[%clk 0:01:10]}  Kxg6 {[%clk 0:01:14]} 42. c4 {[%clk 0:01:11]}  Kh5 {[%clk 0:00:52]} 43. Ke3 {[%clk 0:00:58]}  Kg4 {[%clk 0:00:51]} 44. c5 {[%clk 0:00:54]}  Rh7 {[%clk 0:00:50]} 45. Rxe6 {[%clk 0:00:54]}  Rh3+ {[%clk 0:00:50]} 46. Kd2 {[%clk 0:00:54]}  Rxb3 {[%clk 0:00:50]} 47. Re5 {[%clk 0:00:55]}  Kxf4 {[%clk 0:00:49]} 48. Rxd5 {[%clk 0:00:56]}  Ke4 {[%clk 0:00:47]} 49. Re5+ {[%clk 0:00:52]}  Kxd4 {[%clk 0:00:47]} 50. Rxf5 {[%clk 0:00:53]}  Rb2+ {[%clk 0:00:46]} 51. Kc1 {[%clk 0:00:53]}  Rb5 {[%clk 0:00:46]} 52. Rf7 {[%clk 0:00:49]}  Kxc5 {[%clk 0:00:45]} 53. Kc2 {[%clk 0:00:49]}  Kb6 {[%clk 0:00:43]} 54. Kc3 {[%clk 0:00:49]}  Ka5 {[%clk 0:00:43]} 55. Rf1 {[%clk 0:00:48]}  Rc5+ {[%clk 0:00:43]} 56. Kb3 {[%clk 0:00:48]}  b5 {[%clk 0:00:43]} 57. Rf6 {[%clk 0:00:45]}  Rh5 {[%clk 0:00:42]} 58. Kb2 {[%clk 0:00:43]}  b4 {[%clk 0:00:39]} 59. Kb3 {[%clk 0:00:43]}  Rh3+ {[%clk 0:00:39]} 60. Kc4 {[%clk 0:00:43]}  Rc3+ {[%clk 0:00:39]} 61. Kd4 {[%clk 0:00:43]}  Rc8 {[%clk 0:00:37]} 62. Kd3 {[%clk 0:00:40]}  Kb5 {[%clk 0:00:37]} 63. Kd2 {[%clk 0:00:39]}  a5 {[%clk 0:00:37]} 64. Rf5+ {[%clk 0:00:39]}  Ka4 {[%clk 0:00:37]} 65. Re5 {[%clk 0:00:39]}  b3 {[%clk 0:00:37]} 66. Kd1 {[%clk 0:00:39]}  Kb4 {[%clk 0:00:37]} 67. Re4+ {[%clk 0:00:40]}  Ka3 {[%clk 0:00:37]} 68. Re3 {[%clk 0:00:40]}  a4 {[%clk 0:00:36]} 69. Re4 {[%clk 0:00:40]}  b2 {[%clk 0:00:36]} 70. Re3+ {[%clk 0:00:41]}  Ka2 {[%clk 0:00:36]} 71. Re2 {[%clk 0:00:41]}  Ka1 {[%clk 0:00:35]} 0-1


[Site "https://www.chess.com"]

[Event "Titled Tuesday Blitz February 22 Early 2022"]
[White "Freitag, Manfred"]
[Black "Vakhlamov, Igor L."]
[WhiteFideId "1602004"]
[BlackFideId "24126748"]
[WhiteElo "2275"]
[BlackElo "2401"]
[Result "0-1"]
[Round "10"]
[TimeControl "180+1"]
[Date "2022.02.22"]
[WhiteClock "0:00:04"]
[BlackClock "0:00:08"]

1. e4 {[%clk 0:03:00]}  e6 {[%clk 0:03:00]} 2. d4 {[%clk 0:03:00]}  d5 {[%clk 0:03:00]} 3. e5 {[%clk 0:03:01]}  c5 {[%clk 0:03:00]} 4. c3 {[%clk 0:03:02]}  Ne7 {[%clk 0:03:00]} 5. Nf3 {[%clk 0:03:02]}  Nbc6 {[%clk 0:03:00]} 6. h4 {[%clk 0:03:02]}  Qb6 {[%clk 0:02:58]} 7. Bd3 {[%clk 0:02:58]}  Bd7 {[%clk 0:02:58]} 8. O-O {[%clk 0:02:58]}  cxd4 {[%clk 0:02:53]} 9. Re1 {[%clk 0:02:57]}  dxc3 {[%clk 0:02:45]} 10. bxc3 {[%clk 0:02:56]}  Nf5 {[%clk 0:02:42]} 11. Nbd2 {[%clk 0:02:50]}  Bc5 {[%clk 0:02:36]} 12. Qe2 {[%clk 0:02:47]}  Ng3 {[%clk 0:02:34]} 13. Qd1 {[%clk 0:02:40]}  Bxf2+ {[%clk 0:02:34]} 14. Kh2 {[%clk 0:02:40]}  Bxe1 {[%clk 0:02:33]} 15. Qxe1 {[%clk 0:02:41]}  Nf5 {[%clk 0:02:28]} 16. Bxf5 {[%clk 0:02:35]}  exf5 {[%clk 0:02:28]} 17. Ba3 {[%clk 0:02:36]}  h6 {[%clk 0:02:03]} 18. Bd6 {[%clk 0:02:29]}  Qd8 {[%clk 0:01:59]} 19. c4 {[%clk 0:02:23]}  d4 {[%clk 0:01:55]} 20. c5 {[%clk 0:02:21]}  Be6 {[%clk 0:01:54]} 21. Rb1 {[%clk 0:02:15]}  Qd7 {[%clk 0:01:40]} 22. Nb3 {[%clk 0:02:08]}  g5 {[%clk 0:01:35]} 23. Kg1 {[%clk 0:02:04]}  Rg8 {[%clk 0:01:12]} 24. hxg5 {[%clk 0:01:55]}  hxg5 {[%clk 0:01:13]} 25. Nfxd4 {[%clk 0:01:50]}  Bd5 {[%clk 0:01:11]} 26. Nb5 {[%clk 0:01:46]}  Rc8 {[%clk 0:01:10]} 27. Na5 {[%clk 0:01:46]}  f4 {[%clk 0:01:04]} 28. Qd2 {[%clk 0:01:33]}  Be4 {[%clk 0:00:57]} 29. Re1 {[%clk 0:01:25]}  Nxa5 {[%clk 0:00:56]} 30. Qxa5 {[%clk 0:01:23]}  Bc6 {[%clk 0:00:55]} 31. e6 {[%clk 0:01:10]}  fxe6 {[%clk 0:00:53]} 32. Nd4 {[%clk 0:01:08]}  Rg6 {[%clk 0:00:47]} 33. Qc3 {[%clk 0:00:54]}  Kf7 {[%clk 0:00:47]} 34. Re5 {[%clk 0:00:44]}  Bd5 {[%clk 0:00:46]} 35. Qd3 {[%clk 0:00:37]}  Rcg8 {[%clk 0:00:19]} 36. Nf5 {[%clk 0:00:21]}  Qa4 {[%clk 0:00:12]} 37. Rxd5 {[%clk 0:00:16]}  exd5 {[%clk 0:00:05]} 38. Qxd5+ {[%clk 0:00:16]}  Ke8 {[%clk 0:00:05]} 39. Be5 {[%clk 0:00:08]}  Qd7 {[%clk 0:00:04]} 40. Nd6+ {[%clk 0:00:08]}  Kf8 {[%clk 0:00:03]} 41. Bd4 {[%clk 0:00:02]}  Re6 {[%clk 0:00:03]} 42. Qf5+ {[%clk 0:00:02]}  Ke7 {[%clk 0:00:03]} 43. Qf7+ {[%clk 0:00:01]}  Kd8 {[%clk 0:00:04]} 44. Qxg8+ {[%clk 0:00:02]}  Kc7 {[%clk 0:00:05]} 45. Qc8+ {[%clk 0:00:02]}  Qxc8 {[%clk 0:00:05]} 46. Nxc8 {[%clk 0:00:03]}  Kxc8 {[%clk 0:00:05]} 47. Kf2 {[%clk 0:00:03]}  Re4 {[%clk 0:00:06]} 48. Bf6 {[%clk 0:00:03]}  g4 {[%clk 0:00:06]} 49. Bg5 {[%clk 0:00:04]}  Ra4 {[%clk 0:00:06]} 50. Bxf4 {[%clk 0:00:04]}  Rxf4+ {[%clk 0:00:07]} 51. Kg3 {[%clk 0:00:05]}  Ra4 {[%clk 0:00:07]} 52. c6 {[%clk 0:00:04]}  bxc6 {[%clk 0:00:08]} 0-1


[Site "https://www.chess.com"]

[Event "Titled Tuesday Blitz February 22 Early 2022"]
[White "Galchenko, Matvey"]
[Black "Kozak, Antoni"]
[WhiteFideId "24175480"]
[BlackFideId "21832030"]
[WhiteElo "2453"]
[BlackElo "2232"]
[Result "1-0"]
[Round "10"]
[TimeControl "180+1"]
[Date "2022.02.22"]
[WhiteClock "0:00:51"]
[BlackClock "0:00:01"]

1. f4 {[%clk 0:03:00]}  d5 {[%clk 0:02:53]} 2. Nf3 {[%clk 0:03:01]}  g6 {[%clk 0:02:50]} 3. g3 {[%clk 0:03:01]}  Bg7 {[%clk 0:02:51]} 4. Bg2 {[%clk 0:03:02]}  Nh6 {[%clk 0:02:50]} 5. O-O {[%clk 0:03:03]}  O-O {[%clk 0:02:51]} 6. d3 {[%clk 0:03:03]}  Nc6 {[%clk 0:02:49]} 7. e4 {[%clk 0:03:02]}  dxe4 {[%clk 0:02:43]} 8. dxe4 {[%clk 0:03:03]}  Bg4 {[%clk 0:02:30]} 9. c3 {[%clk 0:02:57]}  Qxd1 {[%clk 0:02:28]} 10. Rxd1 {[%clk 0:02:58]}  Rfd8 {[%clk 0:02:23]} 11. Re1 {[%clk 0:02:53]}  e5 {[%clk 0:02:18]} 12. Na3 {[%clk 0:02:47]}  Re8 {[%clk 0:02:14]} 13. Nb5 {[%clk 0:02:44]}  Rac8 {[%clk 0:02:13]} 14. Be3 {[%clk 0:02:29]}  a6 {[%clk 0:02:11]} 15. Na3 {[%clk 0:02:28]}  exf4 {[%clk 0:02:06]} 16. Bxf4 {[%clk 0:02:29]}  Bf8 {[%clk 0:01:46]} 17. Nc2 {[%clk 0:02:24]}  Bxf3 {[%clk 0:01:34]} 18. Bxf3 {[%clk 0:02:24]}  Ne5 {[%clk 0:01:35]} 19. Be2 {[%clk 0:02:23]}  Nhg4 {[%clk 0:01:28]} 20. h3 {[%clk 0:02:15]}  Nf6 {[%clk 0:01:28]} 21. Kg2 {[%clk 0:02:07]}  Nxe4 {[%clk 0:01:21]} 22. Bxa6 {[%clk 0:02:02]}  bxa6 {[%clk 0:00:44]} 23. Rxe4 {[%clk 0:02:01]}  Nd3 {[%clk 0:00:41]} 24. Rxe8 {[%clk 0:01:52]}  Rxe8 {[%clk 0:00:41]} 25. Kf3 {[%clk 0:01:53]}  Nxb2 {[%clk 0:00:24]} 26. Bxc7 {[%clk 0:01:46]}  Na4 {[%clk 0:00:24]} 27. Ba5 {[%clk 0:01:39]}  Nxc3 {[%clk 0:00:20]} 28. a4 {[%clk 0:01:29]}  Rc8 {[%clk 0:00:17]} 29. Ne3 {[%clk 0:01:29]}  Bg7 {[%clk 0:00:15]} 30. Rc1 {[%clk 0:01:27]}  f5 {[%clk 0:00:09]} 31. Bb4 {[%clk 0:01:14]}  Rc7 {[%clk 0:00:05]} 32. Ba5 {[%clk 0:01:11]}  Rc5 {[%clk 0:00:05]} 33. Bb6 {[%clk 0:01:09]}  Rc6 {[%clk 0:00:04]} 34. a5 {[%clk 0:01:06]}  Re6 {[%clk 0:00:04]} 35. Rc2 {[%clk 0:00:59]}  h5 {[%clk 0:00:04]} 36. Rd2 {[%clk 0:00:53]}  Kh7 {[%clk 0:00:04]} 37. Rd7 {[%clk 0:00:53]}  Na4 {[%clk 0:00:03]} 38. Bd4 {[%clk 0:00:52]}  g5 {[%clk 0:00:01]} 39. Rxg7+ {[%clk 0:00:51]}  Kh6 {[%clk 0:00:01]} 40. Nxf5# {[%clk 0:00:51]} 1-0


[Site "https://www.chess.com"]

[Event "Titled Tuesday Blitz February 22 Early 2022"]
[White "Galyas, Miklos"]
[Black "Arabidze, Meri"]
[WhiteFideId "707244"]
[BlackFideId "13604040"]
[WhiteElo "2409"]
[BlackElo "2329"]
[Result "0-1"]
[Round "10"]
[TimeControl "180+1"]
[Date "2022.02.22"]
[WhiteClock "0:00:18"]
[BlackClock "0:01:07"]

1. c4 {[%clk 0:03:00]}  e6 {[%clk 0:02:59]} 2. g3 {[%clk 0:02:59]}  f5 {[%clk 0:03:00]} 3. Bg2 {[%clk 0:02:58]}  Nf6 {[%clk 0:03:00]} 4. Nf3 {[%clk 0:02:58]}  d5 {[%clk 0:03:00]} 5. O-O {[%clk 0:02:56]}  d4 {[%clk 0:02:55]} 6. d3 {[%clk 0:02:55]}  c5 {[%clk 0:02:54]} 7. e3 {[%clk 0:02:54]}  Nc6 {[%clk 0:02:55]} 8. exd4 {[%clk 0:02:54]}  cxd4 {[%clk 0:02:56]} 9. Re1 {[%clk 0:02:54]}  Bd6 {[%clk 0:02:54]} 10. a3 {[%clk 0:02:54]}  a5 {[%clk 0:02:54]} 11. Nbd2 {[%clk 0:02:49]}  O-O {[%clk 0:02:53]} 12. Rb1 {[%clk 0:02:48]}  Re8 {[%clk 0:02:49]} 13. Qc2 {[%clk 0:02:41]}  Nd7 {[%clk 0:02:44]} 14. b3 {[%clk 0:02:26]}  h6 {[%clk 0:02:26]} 15. Nh4 {[%clk 0:02:24]}  Nc5 {[%clk 0:02:19]} 16. b4 {[%clk 0:02:22]}  axb4 {[%clk 0:02:19]} 17. axb4 {[%clk 0:02:22]}  Na4 {[%clk 0:02:19]} 18. b5 {[%clk 0:02:20]}  Nb4 {[%clk 0:02:12]} 19. Qb3 {[%clk 0:02:16]}  Nc3 {[%clk 0:02:12]} 20. c5 {[%clk 0:01:32]}  Bxc5 {[%clk 0:02:09]} 21. Nxf5 {[%clk 0:01:32]}  Nxd3 {[%clk 0:02:04]} 22. Rf1 {[%clk 0:01:10]}  Nxc1 {[%clk 0:02:04]} 23. Rbxc1 {[%clk 0:01:07]}  Ne2+ {[%clk 0:02:04]} 24. Kh1 {[%clk 0:01:07]}  Nxc1 {[%clk 0:02:05]} 25. Rxc1 {[%clk 0:01:06]}  Ra3 {[%clk 0:01:48]} 26. Qc4 {[%clk 0:01:03]}  Rc3 {[%clk 0:01:46]} 27. Rxc3 {[%clk 0:01:01]}  dxc3 {[%clk 0:01:47]} 28. Nf1 {[%clk 0:00:44]}  Bxf2 {[%clk 0:01:34]} 29. Nh4 {[%clk 0:00:32]}  Qd4 {[%clk 0:01:32]} 30. Qc7 {[%clk 0:00:29]}  Bd7 {[%clk 0:01:24]} 31. Nf3 {[%clk 0:00:28]}  Qd1 {[%clk 0:01:13]} 32. Ne5 {[%clk 0:00:28]}  Rc8 {[%clk 0:01:07]} 33. Qxb7 {[%clk 0:00:18]}  c2 {[%clk 0:01:07]} 0-1


[Site "https://www.chess.com"]